[Event "TUR-ch U13-18 Open 2023"]
[Site "Antalya"]
[Date "2023.01.27"]
[Round "9"]
[White "Engin, Onur Cinar"]
[Black "Caliskan, Seha"]
[Result "*"]
[ECO "B36"]
[WhiteElo "1990"]
[BlackElo "1954"]
[Annotator "TA"]
[PlyCount "54"]
[EventDate "2023.01.17"]
[EventType "swiss"]
[EventCountry "TUR"]
[SourceTitle "playchess.com"]
[Source "ChessBase"]
[SourceQuality "1"]
[TimeControl "5400+30"]

{[%evp 18,25,41,34,46,39,33,31,24,22]} 1. e4 {[%emt 0:01:00]} c5 {[%emt 0:01:00]} 2. Nf3 {[%emt 0:00:30]} Nc6 {[%emt 0:00:30]} 3. d4 {[%emt 0:00:30]} cxd4 {[%emt 0:00:30]} 4. Nxd4 {[%emt 0:00:00]} g6 {[%emt 0:00:00]} 5. c4 {[%emt 0:01:00]} Nf6 {[%emt 0:00:00]} 6. Nc3 {[%emt 0:00:00]} d6 {[%emt 0:00:00]} 7. Be2 {[%emt 0:01:00]} Nxd4 {[%emt 0:00:00]} 8. Qxd4 {[%emt 0:00:30]} Bg7 {[%emt 0:00:00]} 9. Be3 {[%emt 0:00:30]} O-O {[%emt 0:01:00]} 10. Qd2 {[%emt 0:00:30]} a5 {[%emt 0:02:30] B36: Sicilian: Maroczy Bind: Gurgenidze System.} 11. O-O {[%emt 0:02:30]} a4 {[%emt 0:01:30]} 12. Rac1 {[%emt 0:03:30] 12.Bd4 gains popularity.} Qa5 {[%emt 0:04:30]} 13. f3 {[%emt 0:03:30] [#] Black got outplayed after the opening.   Weighted Error Value: White=0.05 (flawless) /Black=0.03 (flawless)} {Predecessor:} Be6 $146 14. Rfd1 Rfc8 15. Nb5 Qxd2 16. Rxd2 Nd7 17. Nd4 Nc5 18. Nxe6 fxe6 19. Rb1 Ra6 20. Bd1 Kf7 21. Kf1 Nd7 22. Be2 Nc5 23. Bd1 Bf6 24. g3 Bg7 25. Kg2 Rca8 26. Bxc5 dxc5 27. f4 Rd6 {½-½ Sadhwani,R (2603)-Adhiban,B (2672) Sharjah Masters 4th 2021 (7)} *

[Event "TUR-ch U13-18 Open 2023"]
[Site "Antalya"]
[Date "2023.01.27"]
[Round "9"]
[White "Hatirli, Ugur Can"]
[Black "Kavri, Yusuf Eren"]
[Result "*"]
[WhiteElo "1989"]
[BlackElo "2050"]
[Annotator "TA"]
[PlyCount "32"]
[EventDate "2023.01.17"]
[EventType "swiss"]
[EventCountry "TUR"]
[SourceTitle "playchess.com"]
[Source "ChessBase"]
[SourceQuality "1"]
[TimeControl "5400+30"]

{[%evp 9,10,4,15]} 1. Nf3 {[%emt 0:01:00]} Nf6 {[%emt 0:02:00]} 2. c4 {[%emt 0:00:30]} c5 {[%emt 0:01:30]} 3. g3 {[%emt 0:02:30]} Nc6 {[%emt 0:04:30]} 4. Nc3 {[%emt 0:02:30]} d5 {[%emt 0:12:30]} 5. cxd5 {[%emt 0:02:30]} Nxd5 {[%emt 0:00:30] [#]} {Predecessor:} 6. Bg2 $146 {A34: Symmetrical English: 2 Nc3, lines with ...d5.} g6 7. d3 Bg7 8. Bd2 e6 9. h4 b6 10. h5 Bb7 11. Qa4 Qd7 12. h6 Bf6 13. Ne4 Be7 14. O-O Nd4 15. Qxd7+ Kxd7 16. Nxd4 cxd4 {0-1 Mamedyarov,S (2741)-So,W (2760) Meltwater Tour Final rapid 2022 (5.2)} *

[Event "TUR-ch U13-18 Open 2023"]
[Site "Antalya"]
[Date "2023.01.27"]
[Round "9"]
[White "Deveci, Huseyin Said"]
[Black "Gupluce, Melih"]
[Result "*"]
[ECO "D00"]
[WhiteElo "1987"]
[BlackElo "1309"]
[Annotator "TA"]
[PlyCount "28"]
[EventDate "2023.01.17"]
[EventType "swiss"]
[EventCountry "TUR"]
[SourceTitle "playchess.com"]
[Source "ChessBase"]
[SourceQuality "1"]
[TimeControl "5400+30"]

{[%evp 9,28,10,19,13,28,21,32,28,29,33,48,25,26,18,39,18,22,16,31,26,39]} 1. d4 {[%emt 0:01:00]} Nf6 {[%emt 0:01:00]} 2. Nc3 {[%emt 0:00:30]} d5 {[%emt 0:00:30]} 3. Bf4 {[%emt 0:00:00]} c6 {[%emt 0:00:00]} 4. e3 {[%emt 0:00:00]} Bf5 {[%emt 0:00:00]} 5. f3 {[%emt 0:00:00]} e6 {[%emt 0:00:30]} 6. g4 {[%emt 0:00:00][%cal Bg2g4,Bg4g5][%mdl 32] D00: 1 d4 d5: Unusual lines.} Bg6 {[%emt 0:00:30]} 7. h4 {[%emt 0:00:00] [#] aiming for h5.} h5 {[%emt 0:00:30]} 8. g5 {[%emt 0:01:00] White is slightly better.} Ng8 {[%emt 0:00:30] now scores much better than the old 8...Nfd7.} 9. Qd2 {[%emt 0:00:30]} Bd6 {[%emt 0:00:30]} 10. Bxd6 {[%emt 0:00:30]} Qxd6 {[%emt 0:00:30] [#]} 11. O-O-O $146 {[%emt 0:00:00]} ({Predecessor:} 11. Qh2 Qxh2 12. Rxh2 Nd7 13. O-O-O Ne7 14. e4 a6 15. Bh3 b5 16. Re2 Nb6 17. Ree1 {0-1 Wall,T (2290)-Wadsworth,M (2467) Newcastle EJCOA 4th 2022 (9)}) 11... Ne7 {[%emt 0:00:30]} 12. Qh2 {[%emt 0:00:00]} Qxh2 {[%emt 0:07:30]} 13. Rxh2 {[%emt 0:00:00]} O-O {[%emt 0:00:30]} 14. Nh3 {[%emt 0:02:00]} Nd7 {[%emt 0:02:00] Weighted Error Value: White=0.08 (flawless) /Black=0.06 (flawless)} *

[Event "TUR-ch U13-18 Open 2023"]
[Site "Antalya"]
[Date "2023.01.27"]
[Round "9"]
[White "Karaca, Yigit"]
[Black "Durucay, Uygar"]
[Result "0-1"]
[ECO "B15"]
[WhiteElo "1933"]
[BlackElo "1926"]
[Annotator "TA"]
[PlyCount "92"]
[EventDate "2023.01.17"]
[EventType "swiss"]
[EventCountry "TUR"]
[SourceTitle "playchess.com"]
[Source "ChessBase"]
[SourceQuality "1"]
[TimeControl "5400+30"]

{[%evp 14,92,22,8,15,15,25,10,14,24,23,-6,25,0,24,38,41,-94,0,0,0,0,0,0,21,-143,-117,-151,-150,-172,-179,-170,-129,-122,-124,-203,-95,-106,-101,-94,-110,-164,-130,-141,-135,-172,-107,-158,-158,-118,-124,-29987,-29988,-29988,-29989,-29989,-1360,-1237,-1243,-6279,-6250,-6233,-6219,-5736,-5688,-4914,-4875,-2437,-1774,-29979,-29980,-29980,-29981,-29985,-29986,-29986,-29987,-29988,-29989,-29989,-29989]} 1. e4 {[%emt 0:01:00]} c6 {[%emt 0:01:00]} 2. d4 {[%emt 0:00:30]} d5 {[%emt 0:00:30]} 3. Nc3 {[%emt 0:00:30]} dxe4 {[%emt 0:00:30]} 4. Nxe4 {[%emt 0:00:00]} Nf6 {[%emt 0:00:00]} 5. Nxf6+ {[%emt 0:00:00]} exf6 {[%emt 0:00:00]} 6. Nf3 {[%emt 0:00:00]} Bd6 {[%emt 0:00:30]} 7. Bd3 {[%emt 0:00:00] 7.Bd3 is better than 7.Be2.} O-O {[%emt 0:00:30]} 8. O-O {[%emt 0:00:30]} Na6 {[%emt 0:00:30] B15: Caro-Kann: 3 Nc3: 3...g6 and 3...dxe4 4 Nxe4 Nf6 5 Nxf6+ exf6.} 9. c4 {[%emt 0:07:30]} Nc7 {[%emt 0:01:30]} 10. Qc2 {[%emt 0:12:30]} g6 $1 {[%emt 0:01:30] The position is equal.} 11. Bh6 {[%emt 0:01:30]} Re8 {[%emt 0:00:30] [#]} 12. Rfe1 $146 {[%emt 0:00:30]} ({Predecessor:} 12. h3 Ne6 13. Rfe1 Ng7 14. h4 Bf5 15. Bxg7 Bxd3 16. Qxd3 Kxg7 17. h5 Qd7 18. Nd2 {1-0 Richters,M (1912)-Hehn,H (1824) GER Cup Net Final-B U2000 blitz 2020 (4)}) 12... Be6 {[%emt 0:00:30]} 13. Rad1 {[%emt 0:09:30]} a5 {[%emt 0:06:30][%cal Ba7a5,Ba5a4][%mdl 32]} 14. h3 {[%emt 0:21:30]} Qd7 {[%emt 0:00:30][%cal Oe6h3]} 15. Re4 {[%emt 0:19:30]} (15. Nd2 $14 {keeps the upper hand.}) 15... b5 ({Black should try} 15... Bxh3 $1 $17 16. gxh3 Rxe4 17. Bxe4 Qxh3) 16. b3 a4 17. Rde1 Reb8 18. Rh4 bxc4 19. Bxc4 (19. bxc4 $11 Bb4 20. Bd2) 19... Nd5 20. Qc1 {[%cal Oh6g7]} axb3 21. Bxb3 {[%cal Oh6g7]} Ba3 $1 22. Qd1 Bf5 23. g4 {[#]} Be6 24. g5 (24. Bd2 $17) 24... f5 ({Stronger than} 24... Bxh3 25. gxf6 Bg4 26. Ne5 Bxd1 27. Nxd7 $11) (24... Bb4 $19 {is more deadly.} 25. Nd2 Nc3) 25. Ne5 $17 Qc7 26. Qf3 {Wards off Nc3} Bd6 27. Nd3 (27. Rc1 $17) 27... Re8 28. Nc5 Qa5 $36 {[%mdl 2048] Black is really pushing.} 29. Re2 {[#]} Qc3 (29... Re7 $1 $19 30. Kg2 Rae8) 30. Qxc3 ({White should play} 30. Kg2) 30... Nxc3 31. Rc2 Bxb3 (31... Bd5 {seems wilder.} 32. Kf1 Ne4 33. Kg2 Ra3) 32. Rxc3 $4 {[%mdl 8192] White does not recover from this.} (32. axb3 $17 Ne2+ 33. Kg2) 32... Re1+ (32... Rxa2 $2 33. Rxb3 (33. Nxb3 Re1+ 34. Kg2 Ree2 $18) 33... Ra7 34. Rb6 $18) 33. Kg2 Bd5+ {A strong pair of Bishops.} (33... Rxa2 $2 34. Rxb3 Ree2 35. Rf3 $18) 34. Rf3 Bxc5 (34... Rh1 $142 35. Re4 fxe4 36. Re3 Rh2+ 37. Kg1 Rxa2 38. Nd3 f5 39. Ne5 Rhxf2 40. Re1 Bxe5 41. dxe5 Bc4 42. h4 Rg2+ 43. Kh1 Rh2+ 44. Kg1 Rag2#) 35. dxc5 $19 Ra3 {[%mdl 64] Pin} 36. Rhf4 Rxf3 37. Rxf3 {[%mdl 4096] Endgame KRB-KRB} Rc1 {[%cal Of5f4] ( -> ...f4!)} 38. Kg3 Bxf3 39. Kxf3 Rxc5 {KR-KB} 40. Ke3 Ra5 41. Kd4 Rxa2 {Black mates.} 42. f4 Ra4+ 43. Ke5 Re4+ 44. Kd6 Rxf4 45. Kxc6 Rd4 46. Kc5 Rd8 {Weighted Error Value: White=0.58/Black=0.23 (precise)} 0-1

[Event "TUR-ch U13-18 Open 2023"]
[Site "Antalya"]
[Date "2023.01.27"]
[Round "9"]
[White "Anacak, Hasan Gunes"]
[Black "Temizer, Umut"]
[Result "*"]
[ECO "A57"]
[WhiteElo "1898"]
[BlackElo "1989"]
[Annotator "TA"]
[PlyCount "35"]
[EventDate "2023.01.17"]
[EventType "swiss"]
[EventCountry "TUR"]
[SourceTitle "playchess.com"]
[Source "ChessBase"]
[SourceQuality "1"]
[TimeControl "5400+30"]

{[%evp 14,22,21,14,51,43,57,53,48,40,56]} 1. d4 {[%emt 0:01:00]} Nf6 {[%emt 0:01:00]} 2. c4 {[%emt 0:00:30]} c5 {[%emt 0:00:30]} 3. d5 {[%emt 0:00:30]} b5 {[%emt 0:00:30]} 4. cxb5 {[%emt 0:00:30]} e6 {[%emt 0:00:00]} 5. Nc3 {[%emt 0:00:00]} exd5 {[%emt 0:00:00]} 6. Nxd5 {[%emt 0:01:00]} Bb7 {[%emt 0:00:00]} 7. Nxf6+ {[%emt 0:02:30]} Qxf6 {[%emt 0:02:00]} 8. e3 {[%emt 0:03:30]} d5 {[%emt 0:03:30] A57: Benko/Volga Gambit.} 9. Nf3 {[%emt 0:02:30] White is slightly better.} Bd6 {[%emt 0:00:30]} 10. Be2 {[%emt 0:04:30]} O-O {[%emt 0:00:00]} 11. O-O {[%emt 0:00:30]} Nd7 {[%emt 0:00:00] [#] White took control after the opening.   Weighted Error Value: White=0.05 (flawless) /Black=0.15 (very precise)} {Predecessor:} 12. Qc2 $146 Rfe8 13. Re1 Nf8 14. Bd2 Rac8 15. Bd3 Ng6 16. Rad1 d4 17. e4 h6 18. b3 {1-0 Rosenthal,D (2397)-Neumeier,L (2320) Oberliga Nord O 1415 2014 (5.1)} *

[Event "TUR-ch U13-18 Open 2023"]
[Site "Antalya"]
[Date "2023.01.27"]
[Round "9"]
[White "Karademir, Bugra"]
[Black "Yildirim, Kemal"]
[Result "*"]
[ECO "B67"]
[WhiteElo "1889"]
[BlackElo "1804"]
[Annotator "NA RC COMBH"]
[PlyCount "21"]
[EventDate "2023.01.17"]
[EventType "swiss"]
[EventCountry "TUR"]
[SourceTitle "playchess.com"]
[Source "ChessBase"]
[SourceQuality "1"]
[TimeControl "5400+30"]

1. e4 {[%emt 0:01:00]} c5 {[%emt 0:06:00]} 2. Nf3 {[%emt 0:00:00]} d6 {[%emt 0:01:30]} 3. d4 {[%emt 0:00:00]} cxd4 {[%emt 0:00:30]} 4. Nxd4 {[%emt 0:00:30]} Nf6 {[%emt 0:00:30]} 5. Nc3 {[%emt 0:00:30]} Nc6 {[%emt 0:00:30]} 6. Bg5 {[%emt 0:00:30]} e6 {[%emt 0:00:30]} 7. Qd2 {[%emt 0:00:30]} a6 {[%emt 0:00:30]} 8. O-O-O {[%emt 0:00:30]} Bd7 $14 {[%emt 0:00:00]} 9. f3 {[%emt 0:04:30]} Nxd4 {[%emt 0:00:30]} 10. Qxd4 {[%emt 0:01:30]} Be7 {[%emt 0:00:30]} 11. h4 {[%emt 0:04:30]} *

[Event "TUR-ch U13-18 Open 2023"]
[Site "Antalya"]
[Date "2023.01.27"]
[Round "9"]
[White "Dirikolu, Deniz"]
[Black "Demirtas, Alper"]
[Result "*"]
[WhiteElo "1868"]
[BlackElo "1990"]
[Annotator "TA"]
[PlyCount "33"]
[EventDate "2023.01.17"]
[EventType "swiss"]
[EventCountry "TUR"]
[SourceTitle "playchess.com"]
[Source "ChessBase"]
[SourceQuality "1"]
[TimeControl "5400+30"]

{[%evp 16,18,0,8,32]} 1. c4 {[%emt 0:01:00]} c5 {[%emt 0:01:00]} 2. Nf3 {[%emt 0:00:30]} Nc6 {[%emt 0:00:00]} 3. Nc3 {[%emt 0:01:30]} g6 {[%emt 0:00:00]} 4. e3 {[%emt 0:01:30]} Nf6 {[%emt 0:01:30]} 5. d4 {[%emt 0:00:00]} cxd4 {[%emt 0:00:30]} 6. exd4 {[%emt 0:01:00]} d5 {[%emt 0:00:30]} 7. cxd5 {[%emt 0:02:30]} Nxd5 {[%emt 0:00:30]} 8. Bc4 {[%emt 0:00:30]} Nb6 {[%emt 0:11:30]} 9. Bb5 {[%emt 0:05:00] [#] d5 would be deadly.} a6 {[%emt 0:02:30] [#] An uneventful encounter.  A35: Symmetrical English: 2 Nc3 Nc6 3 Nf3.} {Predecessor:} 10. Bxc6+ $146 bxc6 11. O-O Bg7 12. Bg5 O-O 13. Re1 Re8 14. Ne5 f6 15. Qb3+ e6 16. Bh4 g5 17. Nxc6 {1-0 Martic,I (2264)-Bartholomew,J (2446) Titled Tuesday intern op 30th Aug Late blitz 2022 (10)} *

[Event "TUR-ch U13-18 Open 2023"]
[Site "Antalya"]
[Date "2023.01.27"]
[Round "9"]
[White "Dargali, Hakan"]
[Black "Hatirli, Ugur Can"]
[Result "0-1"]
[ECO "E02"]
[WhiteElo "1817"]
[BlackElo "1989"]
[Annotator "TA"]
[PlyCount "116"]
[EventDate "2023.01.17"]
[EventType "swiss"]
[EventCountry "TUR"]
[SourceTitle "playchess.com"]
[Source "ChessBase"]
[SourceQuality "1"]
[TimeControl "5400+30"]

{[%evp 23,116,26,25,9,2,9,8,-1,0,19,16,4,0,-33,-38,-31,25,0,0,8,37,20,33,31,35,32,43,21,21,23,20,22,27,24,29,3,12,0,0,0,0,0,4,9,32,0,0,0,13,6,35,24,21,20,89,36,36,36,41,37,35,22,29,4,6,4,12,0,0,0,0,0,1,0,0,0,0,0,0,0,0,0,0,0,0,0,0,-5277,-4132,-1536,-1458,-29995,-29996,-29996,-29997]} 1. d4 Nf6 2. c4 e6 3. g3 d5 4. Bg2 dxc4 5. Qa4+ Bd7 6. Qxc4 Bc6 7. Nf3 Bd5 8. Qa4+ {[%emt 0:17:30]} Bc6 {[%emt 0:25:30]} 9. Qc2 {[%emt 0:01:30]} Nbd7 {[%emt 0:06:30]} 10. O-O {[%emt 0:01:30]} Be4 {[%emt 0:04:30]} 11. Qd1 {[%emt 0:07:30]} c5 {[%emt 0:00:30]} 12. Nc3 {[%emt 0:00:30]} Bc6 $1 {[%emt 0:00:00]} 13. Re1 {[%emt 0:08:30] E02: Open Catalan: 5 Qa4+.} cxd4 $1 {[%emt 0:03:00]} 14. Nxd4 {[%emt 0:02:30]} Bxg2 {[%emt 0:00:30]} 15. Kxg2 {[%emt 0:00:00] The position is equal.} Bc5 {[%emt 0:05:30]} 16. e4 {[%emt 0:16:00]} O-O {[%emt 0:00:30]} 17. Nb3 {[%emt 0:01:30]} Bb4 {[%emt 0:03:30] [#]} 18. Bf4 $146 {[%emt 0:21:30]} ({Predecessor:} 18. Qd4 Qb6 19. Bd2 {½-½ Serafimov,T (2377)-Riff,J (2397) Mulhouse GM 2004 (2)}) 18... Rc8 {[%emt 0:02:30]} 19. Rc1 {[%emt 0:01:30]} Nb6 {[%emt 0:01:30]} ({Black should play} 19... Bxc3 $15 20. Rxc3 Rxc3 21. bxc3 e5) 20. Qe2 {[%emt 0:00:30]} Bxc3 {[%emt 0:04:30]} 21. Red1 {[%emt 0:00:54]} Nbd7 {[%emt 0:11:30]} 22. bxc3 {[%emt 0:00:30] Threatens to win with c4.} Re8 {[%emt 0:04:30]} 23. f3 {[%emt 0:02:44]} Qb6 {[%emt 0:02:30]} 24. Rd6 {[%emt 0:01:14]} Rc6 {[%emt 0:00:30]} 25. Rcd1 {[%emt 0:01:13]} e5 {[%emt 0:01:30]} 26. Be3 {[%emt 0:02:47]} (26. Rxd7 $2 Nxd7 27. Rxd7 exf4 $19) 26... Qc7 {[%emt 0:00:30]} 27. Rxc6 {[%emt 0:00:28]} Qxc6 {[%emt 0:00:00]} 28. c4 {[%emt 0:01:49]} (28. Bxa7 $2 b6 29. c4 Ra8 30. Bxb6 Qxb6 $19) 28... b6 {[%emt 0:00:00]} 29. Qd3 {[%emt 0:02:14]} h6 {[%emt 0:02:30]} 30. g4 {[%emt 0:02:56]} Rc8 {[%emt 0:01:30]} 31. h4 {[%emt 0:00:23] g5 would be deadly.} Nf8 {[%emt 0:02:53]} (31... Qxc4 32. Qxc4 Rxc4 33. g5 $16) 32. c5 {[%emt 0:00:53]} bxc5 {[%emt 0:03:50]} 33. Nxc5 {[%emt 0:00:30]} Qb6 {[%emt 0:07:41]} (33... Ng6 {looks sharper.} 34. Kg3 Nf4 35. Qa6 Qxa6 36. Nxa6 g5) 34. Nb3 {[%emt 0:01:58]} Qe6 {[%emt 0:00:30][%cal Of6g4]} 35. Kg3 {[%emt 0:00:09]} ({Much worse is} 35. Bxa7 Ng6 36. Kg1 h5 $19) 35... a6 {[%emt 0:01:40]} 36. Qd6 {[%emt 0:00:53]} Qxd6 {[%emt 0:02:33]} (36... Rc2 {with more complications.} 37. h5 N6h7 38. Rd2 Qxd6 39. Rxd6 Rxa2 40. Nc5 a5) 37. Rxd6 {[%emt 0:00:30]} Rc3 {[%emt 0:00:00] Dodges Nc5} 38. Kf2 {[%emt 0:00:55]} a5 {[%emt 0:00:00]} 39. Nxa5 {[%emt 0:01:52]} ({Better is} 39. Ke2 $16) 39... Ra3 $1 $14 {[%emt 0:00:00][%csl LRa2,LRa5]} 40. Nc4 {[%emt 0:00:30]} Rxa2+ {[%emt 0:00:22]} 41. Kg3 {[%emt 0:00:00] Hoping for Rd8.} N6d7 {[%emt 0:01:33]} 42. Rd5 {[%emt 0:02:11]} f6 {[%emt 0:00:30]} 43. Nd6 {[%emt 0:00:00]} Ne6 {[%emt 0:02:02]} 44. Nf5 {[%emt 0:00:23]} Ndf8 {[%emt 0:00:00]} 45. Rb5 {[%emt 0:00:16]} Ng6 {[%emt 0:00:34]} 46. Rd5 {[%emt 0:01:16]} Ngf4 {[%emt 0:01:41][%csl Gf4][%cal Ra2g2]} 47. Rd2 {[%emt 0:00:24] Prevents Rg2+} Ra1 {[%emt 0:02:47]} 48. Kh2 {[%emt 0:01:50]} h5 {[%emt 0:01:11]} 49. gxh5 {[%emt 0:00:52]} Nxh5 {[%emt 0:00:14]} 50. Ng3 {[%emt 0:00:25]} Nhf4 {[%emt 0:00:38]} 51. Bxf4 {[%emt 0:00:25]} Nxf4 $11 {[%emt 0:00:42][%mdl 4096] Endgame KRN-KRN} 52. Ne2 {[%emt 0:00:12]} Ne6 {[%emt 0:00:25]} 53. Kg3 {[%emt 0:00:30]} Ra3 {[%emt 0:00:30]} 54. Kg4 {[%emt 0:00:16]} Re3 {[%emt 0:00:55]} 55. Kf5 $2 {[%emt 0:00:30][%mdl 8192] [#]} (55. Ng3 $11) 55... Rxe2 $1 $19 {[%emt 0:00:30][%mdl 576] Remove Defender, Decoy} 56. Rd6 {[%emt 0:00:30]} (56. Rd1 Nd4+) 56... Nd4+ {[%emt 0:00:30]} 57. Kg6 {[%emt 0:00:30]} Rg2+ {[%emt 0:00:30]} ({Don't do} 57... Nxf3 58. Rd8#) 58. Kh5 {[%emt 0:00:30]} Ne2 {[%emt 0:00:30] Weighted Error Value: White=0.39/Black=0.08 (flawless)} ({Weaker is} 58... Nxf3 59. Rd8+ Kh7 60. Rh8+ Kxh8 $11) 0-1

[Event "TUR-ch U13-18 Open 2023"]
[Site "Antalya"]
[Date "2023.01.27"]
[Round "9"]
[White "Ermemis, Kadir Efe"]
[Black "Pasa, Ahmet"]
[Result "0-1"]
[ECO "B36"]
[WhiteElo "1808"]
[BlackElo "1581"]
[Annotator "NA RC COMBH"]
[PlyCount "140"]
[EventDate "2023.01.17"]
[EventType "swiss"]
[EventCountry "TUR"]
[SourceTitle "playchess.com"]
[Source "ChessBase"]
[SourceQuality "1"]
[TimeControl "5400+30"]

1. e4 {[%emt 0:01:00]} c5 {[%emt 0:01:00]} 2. Nf3 {[%emt 0:00:30]} Nc6 {[%emt 0:00:30]} 3. d4 {[%emt 0:00:30]} cxd4 {[%emt 0:00:30]} 4. Nxd4 {[%emt 0:00:00]} g6 {[%emt 0:00:00]} 5. c4 {[%emt 0:01:00]} Nf6 {[%emt 0:00:00]} 6. Nc3 {[%emt 0:00:00]} d6 {[%emt 0:00:00]} 7. Be2 {[%emt 0:01:00]} Nxd4 {[%emt 0:00:00]} 8. Qxd4 {[%emt 0:00:30]} Bg7 {[%emt 0:00:00]} 9. Be3 {[%emt 0:00:30]} O-O {[%emt 0:01:00]} 10. Qd2 {[%emt 0:00:30]} a5 $14 {[%emt 0:02:30]} 11. O-O a4 12. Rac1 Qa5 13. f3 Be6 {[%emt 0:24:00]} 14. Rfd1 {[%emt 0:21:30]} Rfc8 {[%emt 0:05:30]} 15. Nb5 {[%emt 0:08:30]} Qxd2 {[%emt 0:03:30]} 16. Rxd2 {[%emt 0:05:30]} Nd7 {[%emt 0:12:30]} 17. Nd4 {[%emt 0:04:30]} Nc5 {[%emt 0:04:30]} 18. Rb1 {[%emt 0:08:30]} Bd7 {[%emt 0:07:30]} 19. Kf2 {[%emt 0:02:30]} Rab8 {[%emt 0:10:30]} 20. b4 {[%emt 0:12:30]} axb3 {[%emt 0:03:30]} 21. axb3 {[%emt 0:00:30]} Ra8 {[%emt 0:01:30]} 22. b4 {[%emt 0:07:30]} Ne6 {[%emt 0:03:30]} 23. c5 {[%emt 0:05:30]} Nxd4 {[%emt 0:08:45]} 24. Bxd4 {[%emt 0:00:30]} Bxd4+ {[%emt 0:01:44]} 25. Rxd4 {[%emt 0:01:30]} Ra2 {[%emt 0:00:47]} 26. Kf1 {[%emt 0:06:16]} Be6 {[%emt 0:01:36]} 27. Bc4 {[%emt 0:03:47]} Bxc4+ {[%emt 0:06:13]} 28. Rxc4 {[%emt 0:00:30]} dxc5 {[%emt 0:00:30]} 29. Rxc5 {[%emt 0:00:30]} Rd8 {[%emt 0:00:27]} 30. Rg5 {[%emt 0:08:13]} Rdd2 {[%emt 0:00:35]} 31. h4 {[%emt 0:00:32]} h6 {[%emt 0:00:57]} 32. Rg4 {[%emt 0:00:30]} Kg7 {[%emt 0:01:56]} 33. Kg1 {[%emt 0:00:59]} h5 {[%emt 0:02:04]} 34. Rg5 {[%emt 0:00:59]} f6 {[%emt 0:00:05]} 35. Rg3 {[%emt 0:00:37]} Rab2 {[%emt 0:00:14]} 36. Rc1 {[%emt 0:01:29]} Rxb4 {[%emt 0:00:19]} 37. Rc5 {[%emt 0:00:28]} Rb1+ {[%emt 0:01:01]} 38. Kh2 {[%emt 0:00:38]} Rdd1 {[%emt 0:00:00]} 39. Rh3 {[%emt 0:00:08]} b5 {[%emt 0:00:34]} 40. f4 {[%emt 0:02:19]} Rh1+ {[%emt 0:00:30]} 41. Kg3 {[%emt 0:00:30]} Rb3+ {[%emt 0:00:00]} 42. Kf2 {[%emt 0:00:00]} Rhxh3 {[%emt 0:00:13]} 43. gxh3 {[%emt 0:00:00]} b4 {[%emt 0:00:16]} 44. Rb5 {[%emt 0:00:24]} Rxh3 {[%emt 0:03:24]} 45. Rxb4 {[%emt 0:00:30]} Rxh4 {[%emt 0:00:00]} 46. Kg3 {[%emt 0:00:17]} Rg4+ {[%emt 0:00:19]} 47. Kf3 {[%emt 0:00:00]} Rg1 {[%emt 0:00:01]} 48. Kf2 {[%emt 0:00:45]} Ra1 {[%emt 0:00:34]} 49. Rb3 {[%emt 0:00:27]} g5 {[%emt 0:00:46]} 50. fxg5 {[%emt 0:00:30]} fxg5 {[%emt 0:00:00]} 51. Rb5 {[%emt 0:00:31]} Ra2+ {[%emt 0:00:06]} 52. Kf3 {[%emt 0:00:30]} Ra3+ {[%emt 0:00:30]} 53. Kf2 {[%emt 0:00:30]} Kf6 {[%emt 0:00:30]} 54. Rf5+ {[%emt 0:00:30]} Kg6 {[%emt 0:00:30]} 55. Re5 {[%emt 0:00:30]} Ra2+ {[%emt 0:00:00]} 56. Kg1 {[%emt 0:00:59]} Ra7 {[%emt 0:00:00]} 57. Kg2 {[%emt 0:00:30]} h4 {[%emt 0:00:10]} 58. Rf5 {[%emt 0:00:35]} Kh5 {[%emt 0:00:53]} 59. Rf2 {[%emt 0:00:30]} Ra4 {[%emt 0:00:30]} 60. Re2 {[%emt 0:00:30]} Ra3 {[%emt 0:00:39]} 61. e5 {[%emt 0:00:42]} e6 {[%emt 0:00:30]} 62. Kh2 {[%emt 0:00:30]} g4 {[%emt 0:00:30]} 63. Kg2 {[%emt 0:00:34]} h3+ {[%emt 0:00:26]} 64. Kh2 {[%emt 0:00:30]} Kh4 {[%emt 0:00:30]} 65. Re4 {[%emt 0:00:30]} Ra2+ {[%emt 0:00:30]} 66. Kh1 {[%emt 0:00:30]} Kg3 {[%emt 0:00:30]} 67. Re1 {[%emt 0:00:00]} Rf2 {[%emt 0:00:36]} 68. Kg1 {[%emt 0:00:00]} Rf3 {[%emt 0:00:00]} 69. Re2 {[%emt 0:00:10]} h2+ {[%emt 0:00:58]} 70. Rxh2 {[%emt 0:00:06]} Rf1+ {[%emt 0:00:16]} 0-1

[Event "TUR-ch U13-18 Open 2023"]
[Site "Antalya"]
[Date "2023.01.27"]
[Round "9"]
[White "Yildiz, Tunahan"]
[Black "Ozen, Metehan"]
[Result "*"]
[ECO "B99"]
[WhiteElo "1792"]
[BlackElo "2137"]
[Annotator "TA"]
[PlyCount "53"]
[EventDate "2023.01.17"]
[EventType "swiss"]
[EventCountry "TUR"]
[SourceTitle "playchess.com"]
[Source "ChessBase"]
[SourceQuality "1"]
[TimeControl "5400+30"]

{[%evp 27,40,39,48,42,47,33,41,43,37,35,43,39,47,50,38]} 1. e4 {[%emt 0:01:00] Marin,Mihail} c5 {[%emt 0:03:00]} 2. Nf3 {[%emt 0:00:30]} d6 {[%emt 0:00:30]} 3. d4 {[%emt 0:00:30]} cxd4 {[%emt 0:00:30]} 4. Nxd4 {[%emt 0:00:30]} Nf6 {[%emt 0:00:30]} 5. Nc3 {[%emt 0:00:30]} a6 {[%emt 0:00:30]} 6. Bg5 {[%emt 0:00:30]} e6 {[%emt 0:00:30]} 7. f4 {[%emt 0:00:30]} Be7 {[%emt 0:00:30]} 8. Qf3 {[%emt 0:00:30]} Qc7 {[%emt 0:00:30]} 9. O-O-O {[%emt 0:00:30]} Nbd7 {[%emt 0:00:30]} 10. g4 {[%emt 0:00:30]} b5 {[%emt 0:00:30]} 11. Bxf6 {[%emt 0:00:30]} Nxf6 {[%emt 0:00:30]} 12. g5 {[%emt 0:00:30]} Nd7 {[%emt 0:00:00]} 13. f5 {[%emt 0:00:00]} Bxg5+ {[%emt 0:02:00] 13...0-0 is the modern continuation.} 14. Kb1 {[%emt 0:00:00]} O-O {[%emt 0:00:00] White is slightly better.} 15. fxe6 {[%emt 0:00:00] B99: Sicilian Najdorf: 6 Bg5 e6 7 f4 Be7 8 Qf3 Qc7 9 0-0-0 Nbd7.} Nb6 {[%emt 0:00:00]} (15... fxe6 $2 16. Qg3 Nf6 17. Qxg5 $16) 16. Nd5 {[%emt 0:00:00]} Nxd5 {[%emt 0:01:30]} 17. exd5 {[%emt 0:00:00] [#] Black must now prevent Bd3.} fxe6 {[%emt 0:01:30]} 18. Qg4 {[%emt 0:00:00]} e5 {[%emt 0:01:30]} 19. Qxg5 {[%emt 0:00:00] Strongly threatening Ne6.} exd4 {[%emt 0:00:30]} 20. Bd3 {[%emt 0:00:00] Wards off Bf5. Threatens to win with Rhf1.} g6 {[%emt 0:06:30] [#]   Weighted Error Value: White=0.00 (flawless) /Black=0.02 (flawless)} {Predecessor:} 21. Rhf1 $146 Qg7 22. Rxf8+ Qxf8 23. Bxg6 hxg6 24. Qxg6+ Qg7 25. Qe8+ Kh7 26. Rf1 Kh6 27. Qe1 {½-½ Motylev,A (2705)-Sjugirov,S (2602) EU-ch 11th Rijeka 2010 (11)} *